Workbook

Sheet Calculate Fees
A1: 2023 GSCC Fee Calculator
A2: The GSCC Fee Calculator assists families to establish a payment arrangement to pay their school fees. GSCC will send an annual statement at the beginning of the year. Fees can be paid weekly, fortnightly, monthly, quarterly or annually in advance. Please ensure that regular payments are made and that the school fees are finalised by the last Friday in October annually. The figures below include camp costs for Year 5 to Year 11. Please contact us with any enquiries by email sblifinance@bne.catholic.edu.au or Ph: 5374 8840.
A3: N.B. Complete pink fields to determine payment amount.
A4: N.B. Fee discounts are calculated in chronological order from eldest to youngest student. | B4: Click on cell to select Year Level (via drop down box) | C4: Annual Fees Payable
A5: Eldest child | C5: =IFERROR(VLOOKUP('Calculate Fees'!B5,Fees!$A$6:$F$18,2,FALSE),"") -> 
A6: Second eldest child | C6: =IFERROR(VLOOKUP('Calculate Fees'!B6,Fees!$A$6:$F$18,3,FALSE),"") -> 
A7: Third eldest child | C7: =IFERROR(VLOOKUP('Calculate Fees'!B7,Fees!$A$6:$F$18,4,FALSE),"") -> 
A8: Fourth eldest child | C8: =IFERROR(VLOOKUP('Calculate Fees'!B8,Fees!$A$6:$F$18,5,FALSE),"") -> 
A9: Fifth eldest child | C9: =IFERROR(VLOOKUP('Calculate Fees'!B9,Fees!$A$6:$F$18,6,FALSE),"") -> 
B10: Sub-Total | C10: =SUM(C5:C9) -> 0
B11: Add additional costs if applicable
B12: Total Fees | C12: =C11+C10 -> 0
B13: Start Date | C13: 2023-01-27
B14: End Date | C14: 2023-10-27
A16: Weeks between dates | B16: =(DATEDIF(C13,C14,"d")/7)+1 -> 40 | C16: =IFERROR($C$12/B16,0) -> 0
A17: Fortnights between dates | B17: =B16/2 -> 20 | C17: =IFERROR($C$12/B17,0) -> 0
A18: Months between dates | B18: =DATEDIF(C13,C14,"m")+1 -> 10 | C18: =IFERROR($C$12/B18,0) -> 0
A106: Year 12
A107: Year 11
A108: Year 10
A109: Year 9
A110: Year 8
A111: Year 7
A112: Year 6
A113: Year 5
A114: Year 4
A115: Year 3
A116: Year 2
A117: Year 1
A118: Prep

Sheet Fees (hidden)
B2: LOOKUP TABLE FOR FEE CALCULATOR | K2: FEE BUILDUP CALCUATIONS
N4: Additional Fees
A5: Year Level | B5: Fees Child 1 | C5: Fees Child 2 | D5: Fees Child 3 | E5: Fees Child 4 | F5: Fees Child 5 | H5: Year Level | I5: TOTAL | J5: School Fee | K5: Capital Levy | L5: Parents & Community Levy | M5: Resource Levy | N5: Camp | O5: Prep Levy | P5: IT Levy | Q5: Book Levy
A6: Year 12 | B6: =+I6 -> 5387 | C6: =+Fees!$J6*(1-$I$24)+SUM(Fees!$M6:$Q6) -> 3170.575 | D6: =+Fees!$J6*(1-$I$25)+SUM(Fees!$M6:$Q6) -> 2846.195 | E6: =+Fees!$J6*(1-$I$26)+SUM(Fees!$M6:$Q6) -> 2533.4 | F6: =+Fees!$J6*(1-$I$27)+SUM(Fees!$M6:$Q6) -> 2070 | H6: Year 12 | I6: =SUM(Fees!$J6:$Q6) -> 5387 | J6: 2317 | K6: 900 | L6: 100 | M6: 1520 | P6: 550
A7: Year 11 | B7: 5737 | C7: =+Fees!$J7*(1-$I$24)+SUM(Fees!$M7:$Q7) -> 3520.575 | D7: =+Fees!$J7*(1-$I$25)+SUM(Fees!$M7:$Q7) -> 3196.195 | E7: =+Fees!$J7*(1-$I$26)+SUM(Fees!$M7:$Q7) -> 2883.4 | F7: =+Fees!$J7*(1-$I$27)+SUM(Fees!$M7:$Q7) -> 2420 | H7: Year 11 | I7: =SUM(Fees!$J7:$Q7) -> 5737 | J7: 2317 | K7: 900 | L7: 100 | M7: 1520 | N7: 350 | P7: 550
A8: Year 10 | B8: 5387 | C8: =+Fees!$J8*(1-$I$24)+SUM(Fees!$M8:$Q8) -> 3170.575 | D8: =+Fees!$J8*(1-$I$25)+SUM(Fees!$M8:$Q8) -> 2846.195 | E8: =+Fees!$J8*(1-$I$26)+SUM(Fees!$M8:$Q8) -> 2533.4 | F8: =+Fees!$J8*(1-$I$27)+SUM(Fees!$M8:$Q8) -> 2070 | H8: Year 10 | I8: =SUM(Fees!$J8:$Q8) -> 5387 | J8: 2317 | K8: 900 | L8: 100 | M8: 1520 | N8: 0 | P8: 550
A9: Year 9 | B9: 4870 | C9: =+Fees!$J9*(1-$I$24)+SUM(Fees!$M9:$Q9) -> 2788.5 | D9: =+Fees!$J9*(1-$I$25)+SUM(Fees!$M9:$Q9) -> 2500.1 | E9: =+Fees!$J9*(1-$I$26)+SUM(Fees!$M9:$Q9) -> 2222 | F9: =+Fees!$J9*(1-$I$27)+SUM(Fees!$M9:$Q9) -> 1810 | H9: Year 9 | I9: =SUM(Fees!$J9:$Q9) -> 4870 | J9: 2060 | K9: 900 | L9: 100 | M9: 1100 | N9: 500 | P9: 210
A10: Year 8 | B10: 4755 | C10: =+Fees!$J10*(1-$I$24)+SUM(Fees!$M10:$Q10) -> 2673.5 | D10: =+Fees!$J10*(1-$I$25)+SUM(Fees!$M10:$Q10) -> 2385.1 | E10: =+Fees!$J10*(1-$I$26)+SUM(Fees!$M10:$Q10) -> 2107 | F10: =+Fees!$J10*(1-$I$27)+SUM(Fees!$M10:$Q10) -> 1695 | H10: Year 8 | I10: =SUM(Fees!$J10:$Q10) -> 4755 | J10: 2060 | K10: 900 | L10: 100 | M10: 1100 | N10: 385 | P10: 210
A11: Year 7 | B11: 4695 | C11: =+Fees!$J11*(1-$I$24)+SUM(Fees!$M11:$Q11) -> 2613.5 | D11: =+Fees!$J11*(1-$I$25)+SUM(Fees!$M11:$Q11) -> 2325.1 | E11: =+Fees!$J11*(1-$I$26)+SUM(Fees!$M11:$Q11) -> 2047 | F11: =+Fees!$J11*(1-$I$27)+SUM(Fees!$M11:$Q11) -> 1635 | H11: Year 7 | I11: =SUM(Fees!$J11:$Q11) -> 4695 | J11: 2060 | K11: 900 | L11: 100 | M11: 1100 | N11: 325 | P11: 210
A12: Year 6 | B12: 4384 | C12: =+Fees!$J12*(1-$I$24)+SUM(Fees!$M12:$Q12) -> 2681.025 | D12: =+Fees!$J12*(1-$I$25)+SUM(Fees!$M12:$Q12) -> 2493.565 | E12: =+Fees!$J12*(1-$I$26)+SUM(Fees!$M12:$Q12) -> 2312.8 | F12: =+Fees!$J12*(1-$I$27)+SUM(Fees!$M12:$Q12) -> 2045 | H12: Year 6 | I12: =SUM(Fees!$J12:$Q12) -> 4384 | J12: 1339 | K12: 900 | L12: 100 | M12: 880 | N12: 850 | P12: 210 | Q12: 105
A13: Year 5 | B13: 3819 | C13: =+Fees!$J13*(1-$I$24)+SUM(Fees!$M13:$Q13) -> 2116.025 | D13: =+Fees!$J13*(1-$I$25)+SUM(Fees!$M13:$Q13) -> 1928.565 | E13: =+Fees!$J13*(1-$I$26)+SUM(Fees!$M13:$Q13) -> 1747.8 | F13: =+Fees!$J13*(1-$I$27)+SUM(Fees!$M13:$Q13) -> 1480 | H13: Year 5 | I13: =SUM(Fees!$J13:$Q13) -> 3819 | J13: 1339 | K13: 900 | L13: 100 | M13: 880 | N13: 285 | P13: 210 | Q13: 105
A14: Year 4 | B14: 3534 | C14: =+Fees!$J14*(1-$I$24)+SUM(Fees!$M14:$Q14) -> 1831.025 | D14: =+Fees!$J14*(1-$I$25)+SUM(Fees!$M14:$Q14) -> 1643.565 | E14: =+Fees!$J14*(1-$I$26)+SUM(Fees!$M14:$Q14) -> 1462.8 | F14: =+Fees!$J14*(1-$I$27)+SUM(Fees!$M14:$Q14) -> 1195 | H14: Year 4 | I14: =SUM(Fees!$J14:$Q14) -> 3534 | J14: 1339 | K14: 900 | L14: 100 | M14: 880 | P14: 210 | Q14: 105
A15: Year 3 | B15: 3244 | C15: =+Fees!$J15*(1-$I$24)+SUM(Fees!$M15:$Q15) -> 1541.025 | D15: =+Fees!$J15*(1-$I$25)+SUM(Fees!$M15:$Q15) -> 1353.565 | E15: =+Fees!$J15*(1-$I$26)+SUM(Fees!$M15:$Q15) -> 1172.8 | F15: =+Fees!$J15*(1-$I$27)+SUM(Fees!$M15:$Q15) -> 905 | H15: Year 3 | I15: =SUM(Fees!$J15:$Q15) -> 3244 | J15: 1339 | K15: 900 | L15: 100 | M15: 800 | Q15: 105
A16: Year 2 | B16: 3244 | C16: =+Fees!$J16*(1-$I$24)+SUM(Fees!$M16:$Q16) -> 1541.025 | D16: =+Fees!$J16*(1-$I$25)+SUM(Fees!$M16:$Q16) -> 1353.565 | E16: =+Fees!$J16*(1-$I$26)+SUM(Fees!$M16:$Q16) -> 1172.8 | F16: =+Fees!$J16*(1-$I$27)+SUM(Fees!$M16:$Q16) -> 905 | H16: Year 2 | I16: =SUM(Fees!$J16:$Q16) -> 3244 | J16: 1339 | K16: 900 | L16: 100 | M16: 800 | Q16: 105
A17: Year 1 | B17: 3244 | C17: =+Fees!$J17*(1-$I$24)+SUM(Fees!$M17:$Q17) -> 1541.025 | D17: =+Fees!$J17*(1-$I$25)+SUM(Fees!$M17:$Q17) -> 1353.565 | E17: =+Fees!$J17*(1-$I$26)+SUM(Fees!$M17:$Q17) -> 1172.8 | F17: =+Fees!$J17*(1-$I$27)+SUM(Fees!$M17:$Q17) -> 905 | H17: Year 1 | I17: =SUM(Fees!$J17:$Q17) -> 3244 | J17: 1339 | K17: 900 | L17: 100 | M17: 800 | Q17: 105
A18: Prep | B18: =+I18 -> 3244 | C18: =+Fees!$J18*(1-$I$24)+SUM(Fees!$M18:$Q18) -> 1541.025 | D18: =+Fees!$J18*(1-$I$25)+SUM(Fees!$M18:$Q18) -> 1353.565 | E18: =+Fees!$J18*(1-$I$26)+SUM(Fees!$M18:$Q18) -> 1172.8 | F18: =+Fees!$J18*(1-$I$27)+SUM(Fees!$M18:$Q18) -> 905 | H18: Prep | I18: =SUM(Fees!$J18:$Q18) -> 3244 | J18: 1339 | K18: 900 | L18: 100 | M18: 800 | Q18: 105
A20: Weekly
A21: Fortnightly
A22: Monthly | H22: School Fee
A23: Quarterly | H23: Family Discounts | I23: 2023
H24: 2nd Child | I24: 0.525
H25: 3rd Child | I25: 0.665
H26: 4th Child | I26: 0.8
H27: 5th Child | I27: 1
A28: Start Date | B28: 2023-01-27
A29: End Date | B29: 2023-10-27
A31: Weeks between dates | C31: 40
A32: Fortnights between dates | C32: 20
A33: Months between dates | C33: 10

Sheet Fees & Levies Schedule 2023

Sheet Sheet1
